bitfinex/quotes_BTCUSD_20250607
["timestamp","ask_amount","ask_price","bid_price","bid_amount"]
[1749300820397,0.81892763,105610.0,105600.0,0.83416289]
[1749300820592,0.81892763,105610.0,105600.0,0.84363231]
[1749300821009,0.81892763,105610.0,105600.0,0.85310164]
[1749300821210,1.21375122,105610.0,105600.0,0.85310164]
[1749300822523,1.21375122,105610.0,105600.0,0.86257088]
[1749300822722,1.20428287,105610.0,105600.0,0.85310164]
[1749300822947,1.20428287,105610.0,105600.0,0.86257088]
[1749300824077,1.21094558,105610.0,105600.0,0.86257088]
[1749300824287,1.20428287,105610.0,105600.0,0.86257088]
[1749300824508,1.21094558,105610.0,105600.0,0.86257088]
[1749300825125,1.21094558,105610.0,105600.0,0.85310164]
[1749300825795,1.20428287,105610.0,105600.0,0.85310164]
[1749300825987,1.2109456,105610.0,105600.0,0.85310164]
[1749300826396,1.20428287,105610.0,105600.0,0.85310164]
[1749300826663,1.2109456,105610.0,105600.0,0.85310164]
[1749300826813,1.20428287,105610.0,105600.0,0.85310164]
[1749300826997,1.2109456,105610.0,105600.0,0.85310164]
[1749300827609,1.20428287,105610.0,105600.0,0.85310164]
[1749300827801,1.2109456,105610.0,105600.0,0.85310164]
[1749300828200,1.20428287,105610.0,105600.0,0.85310164]
[1749300828594,1.20428287,105610.0,105600.0,0.86257088]
[1749300829016,1.21094578,105610.0,105600.0,0.86257088]
[1749300829210,1.20428287,105610.0,105600.0,0.86257088]
[1749300829855,1.21094577,105610.0,105600.0,0.87204003]
[1749300830060,1.21094579,105610.0,105600.0,0.87204003]
[1749300830413,1.21094574,105610.0,105600.0,0.87204003]
[1749300830690,1.18652493,105610.0,105600.0,0.87204003]
[1749300830908,1.21095565,105610.0,105600.0,0.87204003]
[1749300831040,1.20429273,105610.0,105600.0,0.87204003]
[1749300831247,1.19318785,105610.0,105600.0,0.87204003]
[1749300831445,1.1931878,105610.0,105600.0,0.87204003]
[1749300831647,1.21095545,105610.0,105600.0,0.87204003]
[1749300831994,1.21095544,105610.0,105600.0,0.87204003]
[1749300832374,1.18652493,105610.0,105600.0,0.87204003]
[1749300832581,1.01491658,105610.0,105600.0,0.87204003]
[1749300832774,1.19318778,105610.0,105600.0,0.87204003]
[1749300832977,1.21095541,105610.0,105600.0,0.85310164]
[1749300833187,1.21095533,105610.0,105600.0,0.85310164]
[1749300833655,1.21095533,105610.0,105600.0,0.8625707]
[1749300833788,1.2109546,105610.0,105600.0,0.8625707]
[1749300834008,1.2042906,105610.0,105600.0,0.8625707]
[1749300834203,1.19318699,105610.0,105600.0,0.8625707]
[1749300834428,1.19318705,105610.0,105600.0,0.8625707]
[1749300834847,1.20429059,105610.0,105600.0,0.8625707]
[1749300835027,1.21095271,105610.0,105600.0,0.8625707]
[1749300835251,1.21095271,105610.0,105600.0,0.86257069]
[1749300835460,1.21095242,105610.0,105600.0,0.85310163]
[1749300835612,1.21095242,105610.0,105600.0,0.86257087]
[1749300835831,1.18652493,105610.0,105600.0,0.86257087]
[1749300836044,1.20428981,105610.0,105600.0,0.86257087]
[1749300836239,1.21095164,105610.0,105600.0,0.86257087]
[1749300836431,1.19318672,105610.0,105600.0,0.87204002]
[1749300836629,1.21095125,105610.0,105600.0,0.87204002]
[1749300836829,1.18652493,105610.0,105600.0,0.87204002]
[1749300837155,1.21095133,105610.0,105600.0,0.87204002]
[1749300837372,1.21095138,105610.0,105600.0,0.87204002]
[1749300837698,1.18652493,105610.0,105600.0,0.87204002]
[1749300837831,1.19318672,105610.0,105600.0,0.87204002]
[1749300838029,1.20428971,105610.0,105600.0,0.87204002]
[1749300838256,1.20428972,105610.0,105600.0,0.87204002]
[1749300838461,1.21095151,105610.0,105600.0,0.87204002]
[1749300839182,1.21095136,105610.0,105600.0,0.87204002]
[1749300839536,1.19318667,105610.0,105600.0,0.87204002]
[1749300839975,0.6200889,105610.0,105600.0,0.96843905]
[1749300840147,0.61061988,105610.0,105600.0,0.96843905]
[1749300840347,0.62008814,105610.0,105600.0,0.96843905]
[1749300840634,0.62008805,105610.0,105600.0,0.96843905]
[1749300840986,0.592856,105610.0,105600.0,0.96843905]
[1749300841195,0.61061397,105610.0,105600.0,0.96843905]
[1749300841410,0.61061393,105610.0,105600.0,0.96843905]
[1749300841759,0.592856,105610.0,105600.0,0.96843905]
[1749300842350,0.57014583,105610.0,105600.0,1.37896264]
[1749300842552,0.57014583,105610.0,105600.0,1.36326264]
[1749300842993,0.57013896,105610.0,105600.0,0.96843905]
[1749300843213,0.57960695,105610.0,105600.0,0.96843905]
[1749300843447,0.57960652,105610.0,105600.0,0.96843905]
[1749300843639,0.56185591,105610.0,105600.0,0.96843905]
[1749300843841,0.57960652,105610.0,105600.0,0.96843905]
[1749300844428,0.58907469,105610.0,105600.0,0.96843905]
[1749300845006,0.58907468,105610.0,105600.0,0.96843905]
[1749300845325,0.57960651,105610.0,105600.0,0.96843905]
[1749300845577,0.57013852,105610.0,105600.0,0.96843905]
[1749300845783,0.55238792,105610.0,105600.0,0.96843905]
[1749300846009,0.57013839,105610.0,105600.0,0.96843905]
[1749300846359,0.55238792,105610.0,105600.0,0.98373905]
[1749300846774,0.57013367,105610.0,105600.0,1.39186264]
[1749300846972,0.55238792,105610.0,105600.0,1.39186264]
[1749300852363,0.05408792,105610.0,105600.0,1.39186264]
[1749300852614,0.05408792,105610.0,105600.0,0.96843905]
[1749300854170,0.08538792,105610.0,105600.0,0.96843905]
[1749300854378,0.08538792,105610.0,105600.0,0.96843904]
[1749300855476,0.05408792,105610.0,105600.0,0.99120263]
[1749300855696,0.05408792,105610.0,105600.0,1.39106263]
[1749300857259,0.05408792,105610.0,105600.0,2.12588622]
[1749300863598,0.05408792,105610.0,105600.0,1.80248622]
[1749300863758,0.05008792,105610.0,105600.0,1.70234263]
[1749300864022,0.05308792,105610.0,105600.0,1.70234263]
[1749300864570,0.05308792,105610.0,105600.0,1.70034263]
[1749300864769,0.05308792,105610.0,105600.0,2.09516622]
[1749300865011,0.05308792,105610.0,105600.0,1.70034263]
[1749300865215,0.05308792,105610.0,105600.0,1.70234263]
[1749300865792,0.05308792,105610.0,105600.0,1.31590263]
[1749300866205,0.05308792,105610.0,105600.0,1.70230263]
[1749300867253,0.05308792,105610.0,105600.0,1.73075263]
[1749300867641,0.05308792,105610.0,105600.0,1.73071263]
[1749300868242,0.05308792,105610.0,105600.0,1.33588904]
[1749300868436,0.05308792,105610.0,105600.0,1.73071263]
[1749300868437,0.08448792,105610.0,105600.0,1.73071263]
[1749300869895,0.05308792,105610.0,105600.0,1.73067263]
[1749300870102,0.06888792,105610.0,105600.0,1.73067263]
[1749300870276,0.08448792,105610.0,105600.0,1.73067263]
[1749300870477,0.08448792,105610.0,105600.0,1.34435263]
[1749300870727,0.08448792,105610.0,105600.0,1.73067263]
[1749300871268,0.08448792,105610.0,105600.0,1.34435263]
[1749300871484,0.08448792,105610.0,105600.0,1.73067263]
[1749300872320,0.08448792,105610.0,105600.0,1.34435263]
[1749300872542,0.08448792,105610.0,105600.0,0.60952904]
[1749300872744,0.08448792,105610.0,105600.0,0.96735904]
[1749300873358,0.08448792,105610.0,105600.0,1.36218263]
[1749300874698,0.08448792,105610.0,105600.0,0.96735904]
[1749300874903,0.08448792,105610.0,105600.0,1.36218263]
[1749300876535,0.48877959,105610.0,105600.0,0.96707904]
[1749300876909,0.093956,105610.0,105600.0,0.96707904]
[1749300877129,0.10342426,105610.0,105600.0,0.58107904]
[1749300877340,0.51718482,105610.0,105600.0,0.96707904]
[1749300877553,0.52546062,105610.0,105600.0,0.96707904]
[1749300877762,0.50652401,105610.0,105600.0,0.96707904]
[1749300878361,0.50652401,105610.0,105600.0,0.96703904]
[1749300878558,0.51599236,105610.0,105600.0,0.96691904]
[1749300878812,0.51598847,105610.0,105600.0,0.96691904]
[1749300879003,0.50652017,105610.0,105600.0,0.96691904]
[1749300879235,0.50651933,105610.0,105600.0,0.96691904]
[1749300879466,0.50651924,105610.0,105600.0,0.96691904]
[1749300879912,0.11169565,105610.0,105600.0,0.96691904]
[1749300880157,0.1116958,105610.0,105600.0,0.96691904]
[1749300880584,0.1022246,105610.0,105600.0,0.96691904]
[1749300880821,0.08448792,105610.0,105600.0,0.96691904]
[1749300881031,0.10222453,105610.0,105600.0,0.96691904]
[1749300881233,0.10222455,105610.0,105600.0,0.96691904]
[1749300881459,0.09395591,105610.0,105600.0,0.96691904]
[1749300881636,0.11169155,105610.0,105600.0,0.96691904]
[1749300882092,0.09395591,105610.0,105600.0,0.96691904]
[1749300882510,0.08448792,105610.0,105600.0,0.96691904]
[1749300884487,0.10222233,105610.0,105600.0,0.96691904]
[1749300884688,0.10222235,105610.0,105600.0,0.96691904]
[1749300884936,0.08448792,105610.0,105600.0,0.96691904]
[1749300885303,0.10222107,105610.0,105600.0,0.96691904]
[1749300885488,0.47931151,105610.0,105600.0,0.96691904]
[1749300885888,0.4887795,105610.0,105600.0,0.96683904]
[1749300886137,0.69588861,105610.0,105600.0,0.34421891]
[1749300886375,0.70535821,105610.0,105600.0,0.63369943]
[1749300886602,0.70535858,105610.0,105600.0,0.83256287]
[1749300886763,0.49824848,105610.0,105600.0,0.85150126]
[1749300886968,0.51598272,105610.0,105600.0,0.46562126]
[1749300887176,0.52545143,105610.0,105600.0,0.87995926]
[1749300887445,0.51598272,105610.0,105600.0,0.87995926]
[1749300887627,0.52545071,105610.0,105600.0,0.87995926]
[1749300887845,0.50771647,105610.0,105600.0,0.87995926]
[1749300888052,0.52544501,105610.0,105600.0,0.87995926]
[1749300888393,0.50771647,105610.0,105600.0,0.87995926]
[1749300888594,0.52544491,105610.0,105600.0,0.87995926]
[1749300889271,0.51597638,105610.0,105600.0,0.87995926]
[1749300889885,0.49824794,105610.0,105600.0,0.87995926]
[1749300890443,0.49824785,105610.0,105600.0,0.87995926]
[1749300890658,1.01427481,105610.0,105600.0,0.87995926]
[1749300891078,0.99654785,105610.0,105600.0,0.87995926]
[1749300891279,0.97761151,105610.0,105600.0,0.87995926]
[1749300891662,0.58278792,105610.0,105600.0,1.37118233]
[1749300892257,0.58278792,105610.0,105600.0,0.97635874]
[1749300893838,0.58278792,105610.0,105600.0,1.37118233]
[1749300897752,0.58278792,105610.0,105600.0,0.97635874]
[1749300898198,0.60172435,105610.0,105600.0,0.97635874]
[1749300898436,0.592256,105610.0,105600.0,0.97635874]
[1749300898652,0.592256,105610.0,105600.0,0.97619874]
[1749300899077,0.59225591,105610.0,105600.0,0.97619874]
[1749300899333,0.6099938,105610.0,105600.0,0.97619874]
[1749300899539,0.61946216,105610.0,105600.0,0.97619874]
[1749300899743,0.60172408,105610.0,105600.0,0.97619874]
[1749300899946,0.60999387,105610.0,105600.0,0.97619874]
[1749300900577,0.59225591,105610.0,105600.0,0.97619874]
[1749300900770,0.60999385,105610.0,105600.0,0.97619874]
[1749300900915,0.61946202,105610.0,105600.0,0.97619874]
[1749300901344,0.60999796,105610.0,105600.0,0.97619874]
[1749300901498,0.59225591,105610.0,105600.0,0.97619874]
[1749300901729,0.60999791,105610.0,105600.0,0.97619874]
[1749300901937,0.61946614,105610.0,105600.0,0.97619874]
[1749300902139,0.60172408,105610.0,105600.0,0.97619874]
[1749300902368,0.61946608,105610.0,105600.0,0.97619874]
[1749300902606,0.609998,105610.0,105600.0,0.97619874]
[1749300902764,0.61946617,105610.0,105600.0,0.97619874]
[1749300902964,0.59225591,105610.0,105600.0,0.97619874]
[1749300903176,0.609999,105610.0,105600.0,0.97619874]
[1749300903599,0.59225591,105610.0,105600.0,0.97619874]
[1749300903823,0.60172408,105610.0,105600.0,0.97619874]
[1749300904030,0.62893543,105610.0,105600.0,0.97619874]
[1749300904268,0.60172408,105610.0,105600.0,0.97619874]
[1749300904669,0.61946962,105610.0,105600.0,0.97619874]
[1749300905276,0.60172408,105610.0,105600.0,0.97619874]
[1749300905770,0.61946962,105610.0,105600.0,0.97619874]
[1749300905971,0.60172408,105610.0,105600.0,0.97619874]
[1749300906226,0.61947443,105610.0,105600.0,0.97619874]
[1749300906423,0.60172408,105610.0,105600.0,0.97619874]
[1749300906631,0.61947442,105610.0,105600.0,0.97619874]
[1749300907053,0.61947443,105610.0,105600.0,0.97619874]
[1749300907260,0.6384114,105610.0,105600.0,0.97583874]
[1749300907443,0.62894278,105610.0,105600.0,0.59047874]
[1749300907691,0.82778821,105610.0,105600.0,0.4846102]
[1749300907901,0.63841267,105610.0,105600.0,0.88890859]
[1749300908112,0.62066177,105610.0,105600.0,0.89837765]
[1749300908319,1.03323537,105610.0,105600.0,0.60429765]
[1749300908523,1.01548545,105610.0,105600.0,0.89837765]
[1749300908727,1.02376677,105610.0,105600.0,0.89837765]
[1749300908952,0.63832999,105610.0,105600.0,0.89837765]
[1749300909166,1.04262238,105610.0,105600.0,0.89837765]
[1749300909378,1.04262238,105610.0,105600.0,0.03067743]
[1749300909379,0.71476151,105610.0,105600.0,0.03067743]
[1749300909584,0.72142052,105610.0,105600.0,0.38757943]
[1749300909786,0.69701174,105610.0,105600.0,0.38757943]
[1749300910017,0.72142102,105610.0,105600.0,0.38757943]
[1749300910225,0.72142102,105610.0,105600.0,0.00221943]
[1749300910430,0.72142056,105610.0,105600.0,0.38557943]
[1749300910644,0.71176271,105610.0,105600.0,0.39504912]
[1749300910852,0.69901174,105610.0,105600.0,0.58444305]
[1749300911029,0.69901174,105610.0,105600.0,0.59391265]
[1749300911235,0.70729362,105610.0,105600.0,0.59391265]
[1749300911379,0.71395003,105610.0,105600.0,0.59391265]
[1749300911589,0.69619948,105610.0,105600.0,0.59391265]
[1749300911828,0.71394986,105610.0,105600.0,0.59391265]
[1749300912025,0.71394985,105610.0,105600.0,0.59387265]
[1749300912432,0.70448133,105610.0,105600.0,0.09149943]
[1749300912693,0.70448133,105610.0,105600.0,0.38553943]
[1749300912694,0.69782496,105610.0,105600.0,0.38553943]
[1749300912890,0.68673091,105610.0,105600.0,0.38553943]
[1749300913105,0.68007432,105610.0,105600.0,0.38553943]
[1749300913300,0.70448179,105610.0,105600.0,0.38553943]
[1749300913590,0.6867306,105610.0,105600.0,0.38553943]
[1749300913790,0.70448074,105610.0,105600.0,0.00021943]
[1749300914028,0.68673062,105610.0,105600.0,0.00021943]
[1749300914292,0.70448083,105610.0,105600.0,0.38553943]
[1749300914523,0.68673063,105610.0,105600.0,0.38553943]
[1749300914723,0.70448081,105610.0,105600.0,0.38553943]
[1749300914921,0.68673057,105610.0,105600.0,0.38553943]
[1749300915140,0.68007432,105610.0,105600.0,0.38553943]
[1749300915787,0.68673062,105610.0,105600.0,0.38553943]
[1749300915989,0.70448053,105610.0,105600.0,0.38553943]
[1749300916190,0.68007432,105610.0,105600.0,0.38553943]
[1749300916391,0.68673054,105610.0,105600.0,0.38553943]
[1749300916596,0.70127139,105610.0,105600.0,0.38549943]
[1749300916829,0.69461517,105610.0,105600.0,0.38549943]
[1749300916998,0.71236773,105610.0,105600.0,0.38549943]
[1749300917222,0.70127238,105610.0,105600.0,0.38549943]
[1749300917475,0.71902503,105610.0,105600.0,0.38549943]
[1749300917772,1.05902503,105610.0,105600.0,0.38549943]
[1749300917982,5.57862481,105610.0,105600.0,0.38549943]
[1749300918198,5.5719677,105610.0,105600.0,0.38549943]
[1749300918462,5.18211333,105610.0,105600.0,0.38549943]
[1749300918675,5.18379129,105610.0,105600.0,0.38549943]
[1749300919544,5.16606538,105610.0,105600.0,0.38549943]
[1749300919745,5.15941817,105610.0,105600.0,0.38549943]
[1749300920156,5.16606351,105610.0,105600.0,0.38549943]
[1749300920360,5.15941817,105610.0,105600.0,0.38549943]
[1749300920566,5.18378442,105610.0,105600.0,0.38549943]
[1749300921552,5.16605845,105610.0,105600.0,0.38549943]
[1749300921707,5.17712559,105610.0,105600.0,0.38549943]
[1749300921913,5.16605845,105610.0,105600.0,0.38549943]
[1749300922129,5.67498897,105610.0,105600.0,0.00021943]
[1749300922299,5.67332119,105610.0,105600.0,0.29417943]
[1749300922721,5.69767047,105610.0,105600.0,0.29417943]
[1749300923158,5.69767087,105610.0,105600.0,0.29417943]
[1749300923362,5.69103005,105610.0,105600.0,0.00021943]
[1749300923531,5.69103005,105610.0,105600.0,0.29417943]
[1749300923532,5.67996217,105610.0,105600.0,0.29417943]
[1749300923932,6.13585433,105610.0,105600.0,0.00021943]
[1749300924160,6.1374955,105610.0,105600.0,0.29417943]
[1749300924462,5.74267191,105610.0,105600.0,0.29417943]
[1749300924619,5.74867191,105610.0,105600.0,0.29517943]
[1749300924812,5.74866398,105610.0,105600.0,0.29517943]
[1749300925054,5.74266415,105610.0,105600.0,0.29417943]
[1749300925250,5.76182643,105610.0,105600.0,0.29517943]
[1749300925421,5.73646207,105610.0,105600.0,0.29513943]
[1749300925633,5.75415104,105610.0,105600.0,0.29513943]
[1749300926035,5.75115105,105610.0,105600.0,0.29513943]
[1749300926413,5.74451769,105610.0,105600.0,0.29513943]
[1749300926614,5.75615141,105610.0,105600.0,0.00121943]
[1749300926815,5.74951863,105610.0,105600.0,0.00121943]
[1749300927085,5.73846243,105610.0,105600.0,0.00121943]
[1749300927427,5.74951863,105610.0,105600.0,0.00121943]
[1749300927651,5.73182871,105610.0,105600.0,0.00121943]
[1749300927874,5.73846243,105610.0,105600.0,0.00121943]
[1749300928113,5.75615235,105610.0,105600.0,0.00121943]
[1749300928504,5.74951863,105610.0,105600.0,0.00121943]
[1749300928925,5.75615235,105610.0,105600.0,0.00121943]
[1749300929308,5.88091681,105610.0,105600.0,0.00121943]
[1749300929524,5.88092473,105610.0,105600.0,0.00121943]
[1749300929724,5.86322868,105610.0,105600.0,0.00121943]
[1749300930087,5.88092493,105610.0,105600.0,0.00121943]
[1749300930286,5.88091648,105610.0,105600.0,0.00121943]
[1749300930638,5.91871827,105610.0,105600.0,0.00121943]
[1749300930846,5.91871896,105610.0,105600.0,0.00121943]
[1749300931053,5.91871907,105610.0,105600.0,0.00121943]
[1749300931265,5.91208622,105610.0,105600.0,0.00121943]
[1749300931483,5.8943973,105610.0,105600.0,0.00121943]
[1749300931672,0.23919188,105570.0,105560.0,0.24568]
[1749300931906,0.63426923,105570.0,105560.0,0.63088]
[1749300932355,0.63426923,105570.0,105560.0,0.64035328]
[1749300932985,0.65198722,105570.0,105560.0,0.64235328]
[1749300933203,0.06746212,105570.0,105560.0,0.85076509]
[1749300933411,0.24866426,105570.0,105560.0,0.85076527]
[1749300933829,0.23919233,105570.0,105560.0,0.84129217]
[1749300934031,0.22972013,105570.0,105560.0,0.64235328]
[1749300934233,0.22024775,105570.0,105560.0,0.64235328]
[1749300934665,0.22024775,105570.0,105560.0,0.84129217]
[1749300935079,0.6153251,105570.0,105560.0,0.84129217]
[1749300935258,0.63304269,105570.0,105560.0,0.84129217]
[1749300935515,0.6153251,105570.0,105560.0,0.84129217]
[1749300936054,0.22024775,105570.0,105560.0,0.85076527]
[1749300936301,0.6153251,105570.0,105560.0,0.85076527]
[1749300936786,0.6153251,105570.0,105560.0,0.8602381]
[1749300937232,0.22024775,105570.0,105560.0,0.8602381]
[1749300937452,0.0308,105570.0,105560.0,0.8602381]
[1749300937666,0.02841553,105570.0,105560.0,0.86971075]
[1749300938548,0.04431535,105570.0,105560.0,0.86971075]
[1749300938983,0.05378746,105570.0,105560.0,0.86971075]
[1749300939193,0.04431535,105570.0,105560.0,0.86971075]
[1749300939410,0.02841535,105570.0,105560.0,0.86971075]
[1749300941895,0.03788755,105570.0,105560.0,0.86971075]
[1749300942095,0.03788737,105570.0,105560.0,0.86971075]
[1749300942297,0.02841535,105570.0,105560.0,0.86971075]
[1749300942582,0.03788737,105570.0,105560.0,0.86971075]
[1749300943026,0.04735957,105570.0,105560.0,0.86971075]
[1749300943239,0.07915957,105570.0,105560.0,0.86971075]
[1749300943494,0.06968737,105570.0,105560.0,0.86971075]
[1749300943709,0.05074342,105570.0,105560.0,0.86971075]
[1749300945214,0.44585363,105570.0,105560.0,0.86971075]
[1749300945760,0.45532565,105570.0,105560.0,0.86971075]
[1749300945975,0.45532556,105570.0,105560.0,0.86971075]
[1749300946192,0.42352556,105570.0,105560.0,0.86971075]
[1749300946407,0.41405363,105570.0,105560.0,0.86971075]
[1749300946622,0.44585363,105570.0,105560.0,0.86971075]
[1749300946864,0.00947158,105570.0,105560.0,0.86971075]
[1749300947078,0.01894333,105570.0,105560.0,0.86971075]
[1749300947340,0.00947158,105570.0,105560.0,0.86971075]
[1749300947558,0.01894333,105570.0,105560.0,0.86971075]
[1749300948829,0.04984333,105570.0,105560.0,0.86971075]
[1749300949696,0.04037158,105570.0,105560.0,0.86971075]
[1749300949960,0.04984333,105570.0,105560.0,0.86971075]
[1749300950450,0.04037158,105570.0,105560.0,0.86971075]
[1749300950670,0.05931312,105580.0,105570.0,0.21786381]
[1749300950910,0.02722431,105580.0,105570.0,0.21786381]
[1749300951178,0.01894181,105580.0,105570.0,0.21786381]
[1749300951372,0.43180529,105580.0,105570.0,0.21786381]
[1749300951548,0.43846276,105580.0,105570.0,0.21786381]
[1749300951751,0.01775327,105580.0,105570.0,0.21786381]
[1749300951976,0.00947068,105580.0,105570.0,0.21786319]
[1749300952185,0.02722287,105580.0,105570.0,0.21786319]
[1749300952391,0.00947068,105580.0,105570.0,0.31426267]
[1749300952616,0.02922254,105580.0,105570.0,0.33036267]
[1749300952807,0.01147068,105580.0,105570.0,0.31526267]
[1749300953125,0.04816426,105580.0,105570.0,0.31526267]
[1749300953358,0.03869331,105580.0,105570.0,0.31526267]
[1749300953586,0.04816426,105580.0,105570.0,0.31526267]
[1749300954016,0.0304124,105580.0,105570.0,0.31526267]
[1749300954597,0.04816844,105580.0,105570.0,0.31526267]
[1749300954807,0.04816867,105580.0,105570.0,0.31526267]
[1749300955012,0.0576398,105580.0,105570.0,0.31526267]
[1749300955248,0.03988353,105580.0,105570.0,0.31526267]
[1749300955448,0.0576398,105580.0,105570.0,0.31526267]
[1749300955796,0.55594,105580.0,105570.0,0.31526267]
[1749300956008,0.55594,105580.0,105570.0,0.305791]
[1749300956258,0.56541122,105580.0,105570.0,0.305791]
[1749300956479,0.59571123,105580.0,105570.0,0.599471]
[1749300956697,0.59571128,105580.0,105570.0,0.599471]
[1749300956918,0.59571119,105580.0,105570.0,0.599471]
[1749300957125,0.57795466,105580.0,105570.0,0.599471]
[1749300957328,0.59570389,105580.0,105570.0,0.599471]
[1749300957554,0.75791433,105580.0,105570.0,0.69059154]
[1749300957792,0.56848452,105580.0,105570.0,0.70006329]
[1749300957994,0.59570518,105580.0,105570.0,0.70006329]
[1749300958406,0.565405,105580.0,105570.0,0.70006329]
[1749300959272,0.54765592,105580.0,105570.0,0.70006329]
[1749300959491,0.57985592,105580.0,105570.0,0.70006329]
[1749300959717,0.59760172,105580.0,105570.0,0.70006329]
[1749300959922,0.57985592,105580.0,105570.0,0.70006329]
[1749300960342,0.59759993,105580.0,105570.0,0.70006329]
[1749300960892,0.59759997,105580.0,105570.0,0.70006329]
[1749300961347,0.59759998,105580.0,105570.0,0.70006329]
[1749300961980,0.58812858,105580.0,105570.0,0.70006329]
[1749300962406,0.58812768,105580.0,105570.0,0.70006329]
[1749300963088,0.57038452,105580.0,105570.0,0.70006329]
[1749300963295,0.58812768,105580.0,105570.0,0.70006329]
[1749300964333,0.57865637,105580.0,105570.0,0.70006329]
[1749300964540,0.58812768,105580.0,105570.0,0.70006329]
[1749300965403,0.58812904,105580.0,105570.0,0.70006329]
[1749300965616,0.59760044,105580.0,105570.0,0.70006329]
[1749300966270,0.58812918,105580.0,105570.0,0.70006329]
[1749300966500,0.56091312,105580.0,105570.0,0.70006329]
[1749300966715,0.57038443,105580.0,105570.0,0.70006329]
[1749300966933,0.58812909,105580.0,105570.0,0.70006329]
[1749300967150,0.57038443,105580.0,105570.0,0.70006329]
[1749300967385,0.58812909,105580.0,105570.0,0.70006329]
[1749300968215,0.57038443,105580.0,105570.0,0.70006329]
[1749300968787,0.5881324,105580.0,105570.0,0.70006329]
[1749300969795,0.57038443,105580.0,105570.0,0.70006329]
[1749300970223,0.58813304,105580.0,105570.0,0.70006329]
[1749300970431,0.57038443,105580.0,105570.0,0.70006329]
[1749300970855,0.58813304,105580.0,105570.0,0.70006329]
[1749300971471,0.58813537,105580.0,105570.0,0.70006329]
[1749300971890,0.57038443,105580.0,105570.0,0.70006329]
[1749300972319,0.58813537,105580.0,105570.0,0.70006329]
[1749300972535,0.60588631,105580.0,105570.0,0.70006329]
[1749300972742,0.60588631,105580.0,105570.0,0.70006338]
[1749300972743,0.61535771,105580.0,105570.0,0.70006338]
[1749300972963,0.80478806,105580.0,105570.0,0.70006347]
[1749300973172,0.80478806,105580.0,105570.0,0.31526347]
[1749300973377,1.1998353,105580.0,105570.0,0.70921531]
[1749300973586,1.15367088,105580.0,105570.0,0.57488775]
[1749300973793,1.17142259,105580.0,105570.0,0.58436004]
[1749300973972,1.15367088,105580.0,105570.0,0.60330435]
[1749300974426,1.17142276,105580.0,105570.0,0.60330435]
[1749300974638,1.17142276,105580.0,105570.0,0.61277637]
[1749300975077,1.17142355,105580.0,105570.0,0.61277637]
[1749300975537,1.15248066,105580.0,105570.0,0.19044775]
[1749300975756,1.15248066,105580.0,105570.0,0.59383224]
[1749300975958,1.15248066,105580.0,105570.0,0.59383233]
[1749300976591,1.15248363,105580.0,105570.0,0.59383233]
[1749300976799,1.15248363,105580.0,105570.0,0.59383242]
[1749300977001,1.15248363,105580.0,105570.0,0.60330462]
[1749300977405,1.13472799,105580.0,105570.0,0.60330462]
[1749300977619,1.15914199,105580.0,105570.0,0.60330462]
[1749300977825,1.13472799,105580.0,105570.0,0.60330462]
[1749300978040,1.15914199,105580.0,105570.0,0.60330462]
[1749300978257,1.15914199,105580.0,105570.0,0.59383242]
[1749300978935,1.15915116,105580.0,105570.0,0.38544]
[1749300979143,1.15915116,105580.0,105570.0,0.39491238]
[1749300979350,1.15915116,105580.0,105570.0,0.40438467]
[1749300979555,0.66085116,105580.0,105570.0,0.40438467]
[1749300979963,0.66085065,105580.0,105570.0,0.59383242]
[1749300980166,0.66084928,105580.0,105570.0,0.59383242]
[1749300980373,0.66084928,105580.0,105570.0,0.60330462]
[1749300980810,0.64308833,105580.0,105570.0,0.61277664]
[1749300981222,0.66084926,105580.0,105570.0,0.61277664]
[1749300981428,0.66084927,105580.0,105570.0,0.61277664]
[1749300981872,0.6608489,105580.0,105570.0,0.60330462]
[1749300982079,0.64308796,105580.0,105570.0,0.60330462]
[1749300982288,0.63642799,105580.0,105570.0,0.38544]
[1749300982491,0.64308796,105580.0,105570.0,0.59375242]
[1749300982713,0.66084789,105580.0,105570.0,0.59375242]
[1749300982922,0.66084789,105580.0,105570.0,0.60322462]
[1749300983128,0.66084789,105580.0,105570.0,0.61269673]
[1749300983534,0.64308796,105580.0,105570.0,0.59375242]
[1749300983989,0.66084789,105580.0,105570.0,0.19044775]
[1749300984203,0.65418792,105580.0,105570.0,0.58428013]
[1749300984422,0.64308796,105580.0,105570.0,0.59375242]
[1749300984634,0.64308796,105580.0,105570.0,0.61269673]
[1749300984635,0.66084789,105580.0,105570.0,0.61269673]
[1749300984934,0.64308796,105580.0,105570.0,0.61269673]
[1749300985187,0.66084789,105580.0,105570.0,0.61269673]
[1749300985377,0.65255916,105580.0,105570.0,0.62216866]
[1749300985595,0.67031856,105580.0,105570.0,0.62216866]
[1749300985796,0.65255916,105580.0,105570.0,0.62216866]
[1749300986008,0.64589939,105580.0,105570.0,0.62216866]
[1749300986168,0.67031856,105580.0,105570.0,0.62216866]
[1749300986976,0.67031848,105580.0,105570.0,0.62216866]
[1749300987193,0.66365858,105580.0,105570.0,0.62216866]
[1749300987391,0.65255908,105580.0,105570.0,0.62216866]
[1749300987593,0.67031827,105580.0,105570.0,0.62216866]
[1749300988053,0.67031827,105580.0,105570.0,0.61269673]
[1749300988226,0.67031827,105580.0,105570.0,0.62216875]
[1749300988396,0.67031827,105580.0,105570.0,0.6221683]
[1749300988601,0.67031838,105580.0,105570.0,0.6221683]
[1749300988802,0.67031852,105580.0,105570.0,0.6221683]
[1749300989001,0.66365865,105580.0,105570.0,0.6221683]
[1749300989230,0.66365863,105580.0,105570.0,0.6221683]
[1749300989639,0.68260125,105580.0,105570.0,0.6221683]
[1749300989847,0.68926105,105580.0,105570.0,0.62216785]
[1749300990045,0.68926098,105580.0,105570.0,0.62216785]
[1749300990257,0.68926126,105580.0,105570.0,0.62216785]
[1749300990493,0.68930203,105580.0,105570.0,0.62216785]
[1749300990684,0.67154195,105580.0,105570.0,0.62216785]
[1749300990905,0.66488201,105580.0,105570.0,0.23780785]
[1749300991061,0.66488201,105580.0,105570.0,0.62208785]
[1749300991273,0.68264172,105580.0,105570.0,0.62208785]
[1749300991472,0.68264169,105580.0,105570.0,0.62208785]
[1749300991650,0.68264174,105580.0,105570.0,0.20939206]
[1749300991862,0.68930173,105580.0,105570.0,0.61261601]
[1749300992042,0.68930173,105580.0,105570.0,0.62208785]
[1749300992243,0.67154217,105580.0,105570.0,0.62208785]
[1749300993155,0.6893026,105580.0,105570.0,0.62208785]
[1749300993341,0.68930259,105580.0,105570.0,0.62208785]
[1749300993881,0.6893026,105580.0,105570.0,0.61261601]
[1749300994053,0.49987279,105580.0,105570.0,0.6220874]
[1749300994213,0.49321255,105580.0,105570.0,0.6220874]
[1749300994420,0.48211236,105580.0,105570.0,0.6220874]
[1749300994627,0.49321262,105580.0,105570.0,0.6220874]
[1749300995818,0.4754522,105580.0,105570.0,0.6220874]
[1749300996003,0.48211292,105580.0,105570.0,0.6220874]
[1749300996202,0.67154273,105580.0,105570.0,0.61261565]
[1749300996382,0.46598071,105580.0,105570.0,0.6220874]
[1749300996794,0.49040343,105580.0,105570.0,0.6220874]
[1749300997615,0.48374334,105580.0,105570.0,0.6220874]